{"text_format":"3","workbook":"xlsx","n_sheets":2,"sheets":["Витрати","Категорія"],"not_rendered":{"defined_names":5},"read":"whole","date_system":"1900"}

{"sheet":"Витрати","index":0,"n_rows":25,"n_cols":7,"rows_kept":25,"merged":[[0,1,0,5],[1,1,1,6]]}
[null,"БЮДЖЕТ ВИТРАТ",{"$nulls":4},{"$f":"TODAY()","v":"2018-06-19"}]
[null,"Назва компанії"]
[null,"Витрата","Категорія","Бюджет","Фактично","Різниця (₴)","Різниця (%)"]
[null,"Реклама","Операційні",null,null,{"$f":"IFERROR(SUM(Витрати[Бюджет]-Витрати[Фактично]), \"\")","v":0},{"$f":"IFERROR(SUM(Витрати[Різниця (₴)]/Витрати[Бюджет]),\"\")","v":""}]
[null,"Заборгованість","Операційні",null,null,{"$f":"IFERROR(SUM(Витрати[Бюджет]-Витрати[Фактично]), \"\")","v":0},{"$f":"IFERROR(SUM(Витрати[Різниця (₴)]/Витрати[Бюджет]),\"\")","v":""}]
[null,"Пільги","Операційні",null,null,{"$f":"IFERROR(SUM(Витрати[Бюджет]-Витрати[Фактично]), \"\")","v":0},{"$f":"IFERROR(SUM(Витрати[Різниця (₴)]/Витрати[Бюджет]),\"\")","v":""}]
[null,"Матеріали","Операційні",null,null,{"$f":"IFERROR(SUM(Витрати[Бюджет]-Витрати[Фактично]), \"\")","v":0},{"$f":"IFERROR(SUM(Витрати[Різниця (₴)]/Витрати[Бюджет]),\"\")","v":""}]
[null,"Поштові витрати","Операційні",null,null,{"$f":"IFERROR(SUM(Витрати[Бюджет]-Витрати[Фактично]), \"\")","v":0},{"$f":"IFERROR(SUM(Витрати[Різниця (₴)]/Витрати[Бюджет]),\"\")","v":""}]
[null,"Оренда або іпотека","Операційні",null,null,{"$f":"IFERROR(SUM(Витрати[Бюджет]-Витрати[Фактично]), \"\")","v":0},{"$f":"IFERROR(SUM(Витрати[Різниця (₴)]/Витрати[Бюджет]),\"\")","v":""}]
[null,"Витрати на збут","Операційні",null,null,{"$f":"IFERROR(SUM(Витрати[Бюджет]-Витрати[Фактично]), \"\")","v":0},{"$f":"IFERROR(SUM(Витрати[Різниця (₴)]/Витрати[Бюджет]),\"\")","v":""}]
[null,"Податки","Операційні",null,null,{"$f":"IFERROR(SUM(Витрати[Бюджет]-Витрати[Фактично]), \"\")","v":0},{"$f":"IFERROR(SUM(Витрати[Різниця (₴)]/Витрати[Бюджет]),\"\")","v":""}]
[null,"Комунальні послуги","Операційні",null,null,{"$f":"IFERROR(SUM(Витрати[Бюджет]-Витрати[Фактично]), \"\")","v":0},{"$f":"IFERROR(SUM(Витрати[Різниця (₴)]/Витрати[Бюджет]),\"\")","v":""}]
[null,"Інше","Операційні",null,null,{"$f":"IFERROR(SUM(Витрати[Бюджет]-Витрати[Фактично]), \"\")","v":0},{"$f":"IFERROR(SUM(Витрати[Різниця (₴)]/Витрати[Бюджет]),\"\")","v":""}]
[null,"Страхування","Операційні",null,null,{"$f":"IFERROR(SUM(Витрати[Бюджет]-Витрати[Фактично]), \"\")","v":0},{"$f":"IFERROR(SUM(Витрати[Різниця (₴)]/Витрати[Бюджет]),\"\")","v":""}]
[null,"Відсотки","Операційні",null,null,{"$f":"IFERROR(SUM(Витрати[Бюджет]-Витрати[Фактично]), \"\")","v":0},{"$f":"IFERROR(SUM(Витрати[Різниця (₴)]/Витрати[Бюджет]),\"\")","v":""}]
[null,"Телефон","Операційні",null,null,{"$f":"IFERROR(SUM(Витрати[Бюджет]-Витрати[Фактично]), \"\")","v":0},{"$f":"IFERROR(SUM(Витрати[Різниця (₴)]/Витрати[Бюджет]),\"\")","v":""}]
[null,"Обслуговування та ремонт","Операційні",null,null,{"$f":"IFERROR(SUM(Витрати[Бюджет]-Витрати[Фактично]), \"\")","v":0},{"$f":"IFERROR(SUM(Витрати[Різниця (₴)]/Витрати[Бюджет]),\"\")","v":""}]
[null,"Юридичні послуги","Операційні",null,null,{"$f":"IFERROR(SUM(Витрати[Бюджет]-Витрати[Фактично]), \"\")","v":0},{"$f":"IFERROR(SUM(Витрати[Різниця (₴)]/Витрати[Бюджет]),\"\")","v":""}]
[null,"Амортизація","Операційні",null,null,{"$f":"IFERROR(SUM(Витрати[Бюджет]-Витрати[Фактично]), \"\")","v":0},{"$f":"IFERROR(SUM(Витрати[Різниця (₴)]/Витрати[Бюджет]),\"\")","v":""}]
[null,"Доставка","Операційні",null,null,{"$f":"IFERROR(SUM(Витрати[Бюджет]-Витрати[Фактично]), \"\")","v":0},{"$f":"IFERROR(SUM(Витрати[Різниця (₴)]/Витрати[Бюджет]),\"\")","v":""}]
[null,"Склад","Операційні",null,null,{"$f":"IFERROR(SUM(Витрати[Бюджет]-Витрати[Фактично]), \"\")","v":0},{"$f":"IFERROR(SUM(Витрати[Різниця (₴)]/Витрати[Бюджет]),\"\")","v":""}]
[null,"Магазин","Особисті",null,null,{"$f":"IFERROR(SUM(Витрати[Бюджет]-Витрати[Фактично]), \"\")","v":0},{"$f":"IFERROR(SUM(Витрати[Різниця (₴)]/Витрати[Бюджет]),\"\")","v":""}]
[null,"Продавці","Особисті",null,null,{"$f":"IFERROR(SUM(Витрати[Бюджет]-Витрати[Фактично]), \"\")","v":0},{"$f":"IFERROR(SUM(Витрати[Різниця (₴)]/Витрати[Бюджет]),\"\")","v":""}]
[null,"Інше","Особисті",null,null,{"$f":"IFERROR(SUM(Витрати[Бюджет]-Витрати[Фактично]), \"\")","v":0},{"$f":"IFERROR(SUM(Витрати[Різниця (₴)]/Витрати[Бюджет]),\"\")","v":""}]
[null,"Усього витрат",null,{"$f":"IFERROR(SUM(Витрати[Бюджет]), \"\")","v":0},{"$f":"IFERROR(SUM(Витрати[Фактично]), \"\")","v":0},{"$f":"IFERROR(SUM(Витрати[Різниця (₴)]), \"\")","v":0},{"$f":"IFERROR(SUM(Витрати[[#Totals],[Різниця (₴)]]/Витрати[[#Totals],[Бюджет]]),\"\")","v":""}]

{"sheet":"Категорія","index":1,"n_rows":4,"n_cols":2,"rows_kept":4}
[null,"Підстановка категорій"]
[null,"Категорія"]
[null,"Операційні"]
[null,"Особисті"]